bitfinex/quotes_SOLUSD_20241103
["timestamp","ask_amount","ask_price","bid_price","bid_amount"]
[1730658188534,14.70826298,160.64,160.62,0.2]
[1730658188708,14.70826298,160.64,160.63,0.1]
[1730658188912,9.55594173,160.65,160.63,0.2]
[1730658189114,8.48316298,160.65,160.64,0.1]
[1730658189412,14.70776298,160.66,160.65,0.2]
[1730658190633,8.48316298,160.67,160.65,0.2]
[1730658190837,8.48316298,160.67,160.66,0.1]
[1730658192016,8.48316298,160.69,160.68,0.1]
[1730658194042,14.70626298,160.69,160.68,0.1]
[1730658195539,14.70626298,160.69,160.66,0.2]
[1730658195841,8.48316298,160.67,160.66,0.2]
[1730658196428,14.70706298,160.67,160.66,0.2]
[1730658197743,14.70706298,160.67,160.66,0.1]
[1730658197931,14.70706298,160.67,160.66,0.2]
[1730658204653,14.70706298,160.67,160.66,0.1]
[1730658205755,14.70706298,160.67,160.63,0.2]
[1730658206049,8.48316298,160.64,160.63,0.2]
[1730658206949,8.48316298,160.64,160.63,0.1]
[1730658207126,8.48316298,160.64,160.63,0.2]
[1730658207750,14.70816298,160.64,160.63,0.1]
[1730658207947,14.70816298,160.64,160.63,0.2]
[1730658208552,14.70816298,160.64,160.6,5.9265]
[1730658210453,8.48316298,160.65,160.6,5.9265]
[1730658211437,14.70806298,160.65,160.6,5.9265]
[1730658211736,8.48316298,160.64,160.6,5.9265]
[1730658212049,14.70806298,160.65,160.6,5.9265]
[1730658213655,8.48316298,160.66,160.6,29.97626298]
[1730658213905,8.48316298,160.67,160.61,8.48316298]
[1730658214162,8.48316298,160.69,160.64,8.48316298]
[1730658214551,8.48316298,160.69,160.63,8.48316298]
[1730658215253,14.70626298,160.69,160.64,6.225]
[1730658215557,14.70626298,160.69,160.64,14.70816298]
[1730658215759,8.48316298,160.69,160.64,14.70816298]
[1730658215954,8.48316298,160.69,160.64,30.27086298]
[1730658217355,8.48316298,160.69,160.64,15.5627]
[1730658218569,8.48316298,160.69,160.64,21.7877]
[1730658219468,8.48316298,160.68,160.64,21.7877]
[1730658220757,6.2234,160.69,160.64,21.7877]
[1730658220758,8.48316298,160.67,160.64,21.7877]
[1730658222581,8.48316298,160.67,160.61,8.48316298]
[1730658222582,6.2239,160.67,160.61,15.5652]
[1730658222796,8.48316298,160.62,160.6,6.2265]
[1730658223073,8.48316298,160.65,160.6,30.27626298]
[1730658223451,17.0569,160.7,160.6,30.27626298]
[1730658223452,8.48316298,160.66,160.6,30.27626298]
[1730658223773,8.48316298,160.66,160.61,8.48316298]
[1730658225567,8.48316298,160.66,160.62,6.2258]
[1730658226458,8.48316298,160.65,160.62,6.2258]
[1730658226661,8.48316298,160.66,160.62,21.7904]
[1730658227162,8.48316298,160.65,160.62,21.7904]
[1730658227681,8.48316298,160.66,160.62,15.5646]
[1730658229771,8.48316298,160.65,160.62,15.5646]
[1730658230176,8.48316298,160.66,160.62,15.5646]
[1730658233366,8.48316298,160.67,160.62,15.5646]
[1730658233784,8.48316298,160.66,160.62,15.5646]
[1730658235576,8.48316298,160.66,160.62,21.7904]
[1730658237783,8.48316298,160.66,160.62,15.5646]
[1730658238486,14.70716298,160.67,160.62,15.5646]
[1730658239480,14.70716298,160.67,160.62,21.7904]
[1730658240489,8.48316298,160.66,160.62,21.7904]
[1730658240785,8.48316298,160.66,160.62,15.5646]
[1730658241684,8.48316298,160.65,160.62,15.5646]
[1730658241867,8.48316298,160.64,160.62,15.5646]
[1730658242062,8.48316298,160.65,160.62,15.5646]
[1730658243186,8.48316298,160.64,160.62,15.5646]
[1730658243581,8.48316298,160.65,160.62,15.5646]
[1730658247474,8.48316298,160.64,160.6,6.2266]
[1730658247798,8.48316298,160.63,160.6,6.2266]
[1730658249283,8.48316298,160.62,160.57,31.1386]
[1730658249589,8.48316298,160.59,160.56,21.7987]
[1730658250687,8.48316298,160.59,160.56,15.5705]
[1730658250688,4.59921201,160.58,160.56,15.5705]
[1730658250897,13.08237499,160.57,160.55,0.3090896]
[1730658251073,13.08237499,160.56,160.55,0.3090896]
[1730658252774,19.31057499,160.56,160.55,0.3090896]
[1730658254993,13.08237499,160.56,160.55,0.3090896]
[1730658258495,4.59921201,160.56,160.55,0.3090896]
[1730658258880,8.48316298,160.57,160.55,0.3090896]
[1730658259087,4.59991049,160.56,160.55,0.3090896]
[1730658259290,13.08307347,160.56,160.55,0.3090896]
[1730658261584,4.59991049,160.56,160.55,0.3090896]
[1730658264701,4.59991049,160.56,160.55,6.5375896]
[1730658266083,4.59798832,160.56,160.55,6.5375896]
[1730658268606,13.0811513,160.56,160.55,0.3090896]
[1730658271319,4.59798832,160.56,160.55,0.3090896]
[1730658272491,13.0811513,160.56,160.55,0.3090896]
[1730658273193,8.48316298,160.56,160.55,0.3090896]
[1730658273390,13.08191589,160.56,160.55,0.3090896]
[1730658276897,13.08578929,160.56,160.55,0.3090896]
[1730658279514,12.58578929,160.56,160.55,0.3090896]
[1730658280318,4.60262631,160.56,160.55,0.3090896]
[1730658280712,8.48316298,160.57,160.55,0.3090896]
[1730658280899,4.60294109,160.56,160.55,0.3090896]
[1730658281821,13.08610407,160.56,160.55,0.3090896]
[1730658283822,4.60294109,160.56,160.55,0.3090896]
[1730658284004,4.60294109,160.56,160.55,6.5375896]
[1730658284512,4.60239694,160.56,160.55,22.1089896]
[1730658287427,4.60239694,160.56,160.55,30.59215258]
[1730658287600,4.60239694,160.56,160.55,54.36903658]
[1730658288511,8.48316298,160.6,160.55,54.36903658]
[1730658288702,4.60322429,160.59,160.55,54.36903658]
[1730658288932,4.60322429,160.58,160.55,54.36903658]
[1730658289096,4.60322429,160.57,160.56,8.48316298]
[1730658289914,4.60322429,160.57,160.56,6.2282]
[1730658292418,13.08638727,160.57,160.55,22.1089896]
[1730658292619,8.48316298,160.57,160.55,22.1089896]
[1730658294301,4.59904716,160.56,160.55,22.1089896]
[1730658295124,4.59922977,160.56,160.55,22.1089896]
[1730658295424,8.48316298,160.57,160.55,22.1089896]
[1730658296443,8.48316298,160.58,160.55,22.1089896]
[1730658296622,4.59979194,160.57,160.55,22.1089896]
[1730658296804,4.59979194,160.56,160.55,22.1089896]
[1730658297201,4.59979194,160.56,160.55,30.59215258]
[1730658297421,8.48316298,160.61,160.55,30.59215258]
[1730658297624,4.60013288,160.6,160.55,30.59215258]
[1730658297932,4.60013288,160.59,160.55,30.59215258]
[1730658298225,4.60013288,160.58,160.55,30.59215258]
[1730658298528,8.48316298,160.62,160.56,8.48316298]
[1730658298734,4.60046779,160.61,160.56,8.48316298]
[1730658298914,4.60046779,160.6,160.56,8.48316298]
[1730658299103,4.60046779,160.59,160.56,8.48316298]
[1730658299308,4.60046779,160.58,160.56,7.48316298]
[1730658299509,4.60046779,160.57,160.56,7.48316298]
[1730658300430,4.60046779,160.57,160.56,13.71136298]
[1730658301129,8.48316298,160.62,160.56,29.28186298]
[1730658301339,13.0843787,160.61,160.56,29.28186298]
[1730658301633,4.60121572,160.6,160.56,29.28186298]
[1730658301823,4.60121572,160.59,160.56,29.28186298]
[1730658302020,4.60121572,160.58,160.56,29.28186298]
[1730658302321,4.60121572,160.57,160.56,29.28186298]
[1730658303028,4.60121572,160.57,160.56,53.05874698]
[1730658303430,4.60121572,160.57,160.56,68.91464698]
[1730658304029,4.60121572,160.57,160.56,89.24013698]
[1730658304225,8.48316298,160.66,160.56,129.6822689]
[1730658304426,8.48316298,160.67,160.61,8.48316298]
[1730658304811,8.48316298,160.67,160.62,21.7904]
[1730658305025,8.48316298,160.68,160.63,8.48316298]
[1730658305234,8.48316298,160.69,160.63,8.48316298]
[1730658306226,8.48316298,160.69,160.64,21.7877]
[1730658307535,8.48316298,160.68,160.64,21.7877]
[1730658308629,8.48316298,160.65,160.61,21.7918]
[1730658308835,8.48316298,160.64,160.61,21.7918]
[1730658309940,8.48316298,160.64,160.61,15.5656]
[1730658310115,8.48316298,160.65,160.61,15.5656]
[1730658312632,6.2238,160.68,160.58,21.7953]
[1730658312633,8.48316298,160.62,160.58,21.7953]
[1730658313140,8.48316298,160.64,160.58,30.27846298]
[1730658313313,8.48316298,160.63,160.58,21.7953]
[1730658313636,8.48316298,160.62,160.58,21.7953]
[1730658314320,8.48316298,160.63,160.59,23.776884]
[1730658316020,8.48316298,160.63,160.6,6.2266]
[1730658325241,8.48316298,160.64,160.6,6.2266]
[1730658325446,8.48316298,160.65,160.6,21.7932]
[1730658325643,8.48316298,160.68,160.63,23.776884]
[1730658325826,8.48316298,160.69,160.64,8.48316298]
[1730658326134,8.48316298,160.69,160.64,23.776884]
[1730658326719,8.48316298,160.68,160.65,6.2247]
[1730658329131,8.48316298,160.66,160.61,21.7914]
[1730658329317,8.48316298,160.65,160.61,21.7914]
[1730658330143,8.48316298,160.64,160.61,15.5652]
[1730658330449,8.48316298,160.63,160.61,15.5652]
[1730658332446,8.48316298,160.62,160.58,21.7957]
[1730658332754,8.48316298,160.61,160.58,21.7957]
[1730658333842,8.48316298,160.61,160.58,15.5683]
[1730658334857,8.48316298,160.59,160.55,15.8802896]
[1730658335153,40.28284192,160.65,160.55,15.8802896]
[1730658335154,8.48316298,160.57,160.55,0.3090896]
[1730658335444,8.43112498,160.57,160.55,0.3090896]
[1730658337637,8.48316298,160.59,160.55,6.5373896]
[1730658337844,8.48316298,160.58,160.55,6.5373896]
[1730658344631,8.48316298,160.57,160.55,6.5373896]
[1730658344955,8.48316298,160.58,160.55,6.5373896]
[1730658346641,8.48316298,160.57,160.55,0.3090896]
[1730658348855,8.48316298,160.6,160.55,22.1089896]
[1730658349555,8.48316298,160.59,160.55,22.1089896]
[1730658350560,8.48316298,160.6,160.55,22.1089896]
[1730658351062,8.48316298,160.59,160.55,22.1089896]
[1730658352243,8.48316298,160.57,160.55,15.8804896]
[1730658353239,8.48316298,160.56,160.55,0.3090896]
[1730658360445,8.48316298,160.57,160.55,0.3090896]
[1730658360647,8.48316298,160.58,160.55,6.5375896]
[1730658360848,8.48316298,160.58,160.55,0.3090896]
[1730658361442,8.48316298,160.59,160.55,6.5373896]
[1730658362556,8.48316298,160.58,160.55,6.5373896]
[1730658363058,8.48316298,160.59,160.55,6.5373896]
[1730658363772,8.48316298,160.59,160.55,22.1087896]
[1730658365267,8.48316298,160.58,160.55,22.1087896]
[1730658365561,8.48316298,160.57,160.55,15.8804896]
[1730658365875,8.48316298,160.58,160.55,15.8804896]
[1730658366569,8.48316298,160.58,160.55,22.1089896]
[1730658367151,8.48316298,160.59,160.55,22.1089896]
[1730658368066,8.48316298,160.58,160.55,22.1089896]
[1730658369258,8.48316298,160.59,160.55,22.1089896]
[1730658371070,8.48316298,160.58,160.55,22.1089896]
[1730658375665,14.71016298,160.59,160.55,22.1089896]
[1730658382781,8.48316298,160.6,160.55,22.1089896]
[1730658382984,8.48316298,160.6,160.55,30.59215258]
[1730658384288,8.48316298,160.59,160.55,22.1089896]
[1730658387970,8.48316298,160.6,160.55,22.1089896]
[1730658388573,14.70916298,160.62,160.56,32.26004698]
[1730658388984,14.70916298,160.62,160.57,8.48316298]
[1730658389984,14.70916298,160.62,160.57,14.71056298]
[1730658391569,8.48316298,160.62,160.57,30.28006298]
[1730658391885,1.08371425,160.64,160.6,8.48316298]
[1730658392485,9.56687723,160.64,160.59,8.48316298]
[1730658392780,8.48316298,160.64,160.59,8.48316298]
[1730658394268,8.48316298,160.64,160.6,6.2266]
[1730658395470,8.48316298,160.65,160.61,23.776884]
[1730658395673,8.48316298,160.67,160.61,32.26004698]
[1730658395882,8.48316298,160.66,160.61,32.26004698]
[1730658396080,8.48316298,160.65,160.61,23.776884]
[1730658396678,8.48316298,160.65,160.62,6.2258]
[1730658398489,8.48316298,160.63,160.58,8.48316298]
[1730658398672,8.48316298,160.62,160.57,21.7971]
[1730658399574,8.48316298,160.6,160.57,21.7971]
[1730658399889,8.48316298,160.59,160.57,21.7971]
[1730658400070,6.2261,160.62,160.55,6.5374896]
[1730658400071,8.48316298,160.58,160.55,6.5374896]
[1730658400270,8.48316298,160.58,160.55,0.3090896]
[1730658403673,8.48316298,160.57,160.55,0.3090896]
[1730658405086,8.48316298,160.58,160.55,6.5375896]
[1730658408402,8.48316298,160.59,160.55,6.5375896]
[1730658412302,8.48316298,160.56,160.55,0.3090896]
[1730658412481,132.7922849,160.56,160.55,0.3090896]
[1730658412883,132.7922849,160.56,160.47,0.3090896]
[1730658412884,70.0,160.54,160.47,0.3090896]
[1730658413097,8.48316298,160.5,160.47,0.3090896]
[1730658413494,8.48316298,160.5,160.47,6.5406896]
[1730658415805,8.48316298,160.49,160.47,0.3090896]
[1730658415980,8.48316298,160.48,160.47,0.3090896]
[1730658418908,8.48316298,160.48,160.47,6.5406896]
[1730658421407,8.48316298,160.48,160.47,0.3090896]
[1730658423803,8.48316298,160.49,160.47,0.3090896]
[1730658425999,8.48316298,160.48,160.47,0.3090896]
[1730658429194,8.48316298,160.49,160.47,0.3090896]
[1730658432117,9.98316298,160.5,160.47,0.3090896]
[1730658432893,1.5,160.5,160.47,0.3090896]
[1730658433511,1.5,160.5,160.47,6.5403896]
[1730658433703,9.98316298,160.5,160.47,6.5403896]
[1730658439500,8.48316298,160.49,160.47,6.5403896]
[1730658440727,1.5,160.5,160.48,8.48316298]
[1730658440900,1.5,160.5,160.49,8.48316298]
[1730658441222,1.5,160.5,160.49,32.61102698]
[1730658441397,1.5,160.5,160.49,52.71102698]
[1730658442907,1.5,160.5,160.49,58.94192698]
[1730658443826,25.06836298,160.62,160.52,0.35098]
[1730658444124,6.2859,160.63,160.57,8.48316298]
[1730658444125,8.48316298,160.63,160.57,8.48316298]
[1730658444499,8.48316298,160.65,160.6,8.48316298]
[1730658444709,25.06836298,160.66,160.61,8.48316298]
[1730658445219,25.06836298,160.66,160.62,6.2258]
[1730658445524,1.08323876,160.68,160.64,8.48316298]
[1730658445711,25.06836298,160.71,160.65,8.48316298]
[1730658445908,1.08285104,160.7,160.65,8.48316298]
[1730658446706,1.08285104,160.7,160.66,6.2243]
[1730658447225,15.78881402,160.7,160.65,15.5617]
[1730658447528,8.48316298,160.69,160.65,15.5617]
[1730658450822,15.78881402,160.7,160.65,15.5617]
[1730658452115,8.48316298,160.67,160.61,24.04836298]
[1730658452314,8.48316298,160.66,160.61,30.27456298]
[1730658455806,6.2243,160.67,160.57,37.5551]
[1730658455807,8.48316298,160.65,160.59,8.48316298]
[1730658456334,8.48316298,160.64,160.59,6.2269]
[1730658459637,8.48316298,160.66,160.6,8.48316298]
[1730658460138,14.70746298,160.66,160.61,6.2262]
[1730658461653,8.48316298,160.66,160.61,30.27496298]
[1730658462314,8.48316298,160.66,160.61,21.7918]
[1730658462818,8.48316298,160.65,160.61,21.7918]
[1730658464057,14.70756298,160.66,160.61,21.7918]
[1730658467726,8.48316298,160.65,160.61,21.7918]
[1730658468240,6.2231,160.69,160.6,6.2264]
[1730658468241,8.48316298,160.63,160.6,6.2264]
[1730658469351,8.48316298,160.63,160.58,24.05146298]
[1730658469651,8.48316298,160.63,160.59,6.227]
[1730658470228,14.70856298,160.64,160.59,6.227]
[1730658472335,14.70856298,160.64,160.59,8.48316298]
[1730658473637,14.70856298,160.64,160.59,14.70996298]
[1730658474953,14.70856298,160.64,160.58,24.05146298]
[1730658475144,14.70856298,160.64,160.58,30.27886298]
[1730658476247,8.48316298,160.62,160.58,21.7957]
[1730658479156,8.48316298,160.62,160.58,15.5683]
[1730658482538,14.70896298,160.62,160.58,15.5683]
[1730658483133,8.48316298,160.59,160.55,21.7995]
[1730658483351,8.48316298,160.6,160.55,21.7995]
[1730658483551,8.48316298,160.64,160.58,8.48316298]
[1730658484050,6.2247,160.65,160.55,52.9424]
[1730658484259,8.48316298,160.61,160.56,8.48316298]
[1730658484638,8.48316298,160.61,160.57,6.2278]
[1730658485141,8.48316298,160.59,160.56,30.004984]
[1730658485450,8.48316298,160.59,160.55,15.571]
[1730658487056,14.71016298,160.59,160.55,15.571]
[1730658487251,8.48316298,160.58,160.55,15.571]
[1730658487757,14.71016298,160.59,160.55,15.571]
[1730658490538,9.56681207,160.64,160.58,8.48316298]
[1730658490860,19.97760352,160.68,160.63,8.48316298]
[1730658491057,6.2238,160.68,160.63,8.48316298]
[1730658491443,6.2238,160.68,160.62,8.48316298]
[1730658491643,8.48316298,160.67,160.61,8.48316298]
[1730658491863,8.48316298,160.66,160.6,8.48316298]
[1730658492158,8.48316298,160.65,160.59,32.26004698]
[1730658492564,8.48316298,160.65,160.6,6.2266]
[1730658492943,8.48316298,160.65,160.6,30.27636298]
[1730658494068,8.48316298,160.62,160.58,22.2267]
[1730658494245,8.48316298,160.63,160.58,22.2267]
[1730658495164,8.48316298,160.62,160.57,15.5695]
[1730658495341,8.48316298,160.62,160.57,21.7972]
[1730658496042,8.48316298,160.62,160.57,30.28036298]
[1730658496750,14.70906298,160.62,160.57,30.28036298]
[1730658499044,14.70906298,160.62,160.57,15.5695]
[1730658500064,8.48316298,160.61,160.57,15.5695]
[1730658500250,8.48316298,160.61,160.57,21.7973]
[1730658500864,8.48316298,160.61,160.57,15.5695]
[1730658501071,8.48316298,160.58,160.52,14.71256298]
[1730658501366,70.0,160.62,160.52,14.71256298]
[1730658501367,8.48316298,160.56,160.52,6.2294]
[1730658502359,8.48316298,160.55,160.51,21.8053]
[1730658502957,8.48316298,160.53,160.49,6.2306]
[1730658503155,8.48316298,160.52,160.48,21.8093]
[1730658503560,8.48316298,160.51,160.48,15.578]
[1730658504953,8.48316298,160.52,160.48,15.578]
[1730658505154,8.48316298,160.52,160.48,21.8093]
[1730658505356,8.48316298,160.51,160.48,21.8093]
[1730658505562,8.48316298,160.5,160.47,0.3090896]
[1730658505956,8.48316298,160.49,160.47,0.3090896]
[1730658506862,8.48316298,160.5,160.47,0.3090896]
[1730658507972,14.71376298,160.5,160.47,0.3090896]
[1730658508761,8.48316298,160.48,160.47,0.3090896]
[1730658508963,8.73414298,160.48,160.47,0.3090896]
[1730658509173,98.73414298,160.48,160.47,0.3090896]
[1730658509970,104.96544298,160.48,160.47,0.3090896]
[1730658511469,110.93758134,160.48,160.47,0.3090896]
[1730658515865,40.68660134,160.48,160.47,0.3090896]
[1730658516073,20.68660134,160.48,160.47,0.3090896]
[1730658522371,1.0833486,160.48,160.47,0.3090896]
[1730658524657,6.2305,160.5,160.47,0.3090896]
[1730658526364,14.45506201,160.52,160.47,6.5405896]
[1730658526577,13.37195274,160.51,160.47,15.8882896]
[1730658527581,13.37195274,160.51,160.47,0.3090896]
[1730658528087,13.37195274,160.5,160.47,0.3090896]
[1730658529470,6.2309,160.49,160.47,0.3090896]
[1730658531176,19.60285274,160.49,160.47,0.3090896]
[1730658531369,0.12549,160.53,160.47,0.3090896]
[1730658531370,13.37195274,160.48,160.47,0.3090896]
[1730658531574,19.60325274,160.48,160.47,0.3090896]
[1730658533377,14.78641301,160.48,160.47,0.3090896]
[1730658545482,8.55511301,160.52,160.47,6.5404896]
[1730658545690,14.78441301,160.53,160.47,8.86420261]
[1730658545892,1.08402808,160.52,160.47,8.86420261]
[1730658546389,9.63914109,160.52,160.47,0.3090896]
[1730658546762,14.78521301,160.51,160.47,0.3090896]
[1730658546963,6.2301,160.51,160.47,0.3090896]
[1730658547494,6.2301,160.51,160.47,8.86420261]
[1730658547783,15.86894109,160.52,160.47,22.1195896]
[1730658559784,14.78491301,160.52,160.47,22.1195896]
[1730658568310,8.55511301,160.51,160.47,0.3090896]
[1730658568501,8.55511301,160.5,160.47,0.3090896]
[1730658569199,8.55511301,160.49,160.47,0.3090896]
[1730658569380,8.55511301,160.48,160.47,0.3090896]
[1730658569779,28.55511301,160.48,160.47,0.3090896]
[1730658570303,34.78641301,160.48,160.47,0.3090896]
[1730658570694,34.91190301,160.48,160.47,0.3090896]
[1730658574296,34.78641301,160.48,160.47,0.3090896]
[1730658583190,14.78641301,160.48,160.47,0.3090896]
[1730658588212,34.91190301,160.48,160.47,0.3090896]
[1730658601021,34.78641301,160.48,160.47,0.3090896]
[1730658601626,34.91190301,160.48,160.47,0.3090896]
[1730658602329,35.16288301,160.48,160.47,0.3090896]
[1730658602512,70.0,160.45,160.39,0.3090896]
[1730658602827,8.55511301,160.41,160.39,0.3090896]
[1730658603003,34.42045204,160.47,160.39,0.3090896]
[1730658603004,8.55511301,160.42,160.39,0.3090896]
[1730658603726,8.55511301,160.41,160.39,0.3090896]
[1730658604397,8.55511301,160.4,160.39,0.3090896]
[1730658604598,14.78951301,160.4,160.39,0.3090896]
[1730658608231,105.16598301,160.4,160.39,0.3090896]
[1730658609806,105.26598301,160.4,160.39,0.3090896]
[1730658610019,70.0,160.36,160.31,16.2246896]
[1730658610237,8.55511301,160.33,160.31,16.2246896]
[1730658610424,98.68060301,160.32,160.31,0.3090896]
[1730658611215,98.93158301,160.32,160.31,0.3090896]
[1730658611417,28.55511301,160.32,160.31,0.3090896]
[1730658611638,14.79261301,160.32,160.31,0.3090896]
[1730658612021,14.91810301,160.32,160.31,0.3090896]
[1730658612713,34.91810301,160.32,160.31,0.3090896]
[1730658613525,34.79261301,160.32,160.31,0.3090896]
[1730658614245,34.91810301,160.32,160.31,0.3090896]
[1730658614422,35.16908301,160.32,160.31,0.3090896]
[1730658615337,45.05140309,160.32,160.31,0.3090896]
[1730658615926,68.92828709,160.32,160.31,0.3090896]
[1730658616120,68.92828709,160.32,160.23,0.3090896]
[1730658616121,70.0,160.28,160.23,0.3090896]
[1730658616442,8.55511301,160.24,160.23,0.3090896]
[1730658616649,8.55511301,160.24,160.2,22.3755]
[1730658616650,8.55511301,160.24,160.2,19.6845896]
[1730658616848,8.55511301,160.24,160.2,25.9265896]
[1730658617221,70.0,160.28,160.2,25.9265896]
[1730658617519,8.55511301,160.23,160.2,19.6845896]
[1730658618318,8.55511301,160.22,160.19,15.6055]
[1730658618522,14.79631301,160.23,160.19,15.6055]
[1730658618929,8.55511301,160.22,160.19,15.6055]
[1730658620136,6.2406,160.24,160.19,24.16061301]
[1730658620340,8.55511301,160.24,160.19,15.6055]
[1730658620921,8.55511301,160.23,160.19,15.6055]
[1730658621645,8.55511301,160.22,160.19,15.6055]
[1730658622449,8.55511301,160.21,160.17,6.2433]
[1730658622841,8.55511301,160.2,160.16,38.5671]
[1730658623345,70.0,160.23,160.15,0.3090896]
[1730658623346,8.55511301,160.18,160.15,0.3090896]
[1730658624130,0.12549,160.22,160.15,0.3090896]
[1730658624330,8.55511301,160.16,160.15,0.3090896]
[1730658625147,8.68060301,160.16,160.15,0.3090896]
[1730658625335,14.79881301,160.16,160.15,0.3090896]
[1730658626057,34.79881301,160.16,160.15,0.3090896]
[1730658626352,35.17528301,160.16,160.15,0.3090896]
[1730658627044,35.17528301,160.16,160.11,0.50819382]
[1730658627045,133.02654505,160.12,160.11,0.50819382]
[1730658627357,133.02654505,160.12,160.07,0.3090896]
[1730658627358,96.37229,160.08,160.07,0.3090896]
[1730658628257,104.92740301,160.08,160.07,0.3090896]
[1730658628932,104.92740301,160.08,159.99,47.04100261]
[1730658628933,0.12549,160.07,160.02,0.3994328]
[1730658629135,8.55511301,160.04,160.02,0.3994328]
[1730658629440,8.55511301,160.03,160.02,0.3994328]
[1730658629837,8.55511301,160.06,160.02,0.3994328]
[1730658630247,8.55511301,160.05,160.02,0.3994328]
[1730658631835,8.55511301,160.04,160.02,0.3994328]
[1730658632230,8.55511301,160.03,160.02,0.3994328]
[1730658633042,6.2474,160.07,160.02,0.3994328]
[1730658633043,8.55511301,160.05,160.02,0.3994328]
[1730658633248,8.55511301,160.06,160.02,0.3994328]
[1730658634242,8.55511301,160.05,160.02,0.3994328]
[1730658634440,8.55511301,160.06,160.02,0.3994328]
[1730658634655,14.80251301,160.07,160.02,0.3994328]
[1730658635160,8.55511301,160.06,160.02,0.3994328]
[1730658637644,14.80281301,160.06,160.02,0.3994328]
[1730658638977,8.55511301,160.05,160.02,0.3994328]
[1730658640158,14.80321301,160.05,160.02,0.3994328]
[1730658640555,8.55511301,160.04,160.02,0.3994328]
[1730658640863,8.55511301,160.03,160.02,0.3994328]
[1730658641250,8.55511301,160.04,160.02,0.3994328]
[1730658641442,14.80321301,160.05,160.02,0.3994328]
[1730658642262,8.55511301,160.04,160.02,0.3994328]
[1730658643453,14.80321301,160.05,160.02,0.3994328]
[1730658644564,8.55511301,160.04,160.02,0.3994328]
[1730658646874,8.55511301,160.05,160.02,0.3994328]
[1730658647375,8.55511301,160.04,160.02,0.3994328]
[1730658648770,8.55511301,160.03,160.02,0.3994328]
[1730658650459,14.80391301,160.03,160.02,0.3994328]
[1730658651061,8.55511301,160.05,160.02,0.3994328]
[1730658652450,8.55511301,160.04,160.02,0.3994328]
[1730658652649,8.55511301,160.05,160.02,22.2716328]
[1730658652855,14.80201301,160.08,160.03,8.55511301]
[1730658653070,14.80201301,160.08,160.02,22.2716328]
[1730658653071,8.55511301,160.06,160.02,22.2716328]
[1730658653269,8.55511301,160.06,160.02,0.3994328]
[1730658653479,8.55511301,160.05,160.02,0.3994328]
[1730658654488,14.80321301,160.05,160.02,0.3994328]
[1730658655861,8.55511301,160.06,160.02,0.3994328]
[1730658656371,14.80231301,160.07,160.02,30.82664581]
[1730658657064,14.80231301,160.07,160.02,22.2715328]
[1730658657561,71.08176112,160.1,160.02,22.2715328]
[1730658657562,8.55511301,160.05,160.02,0.3994328]
[1730658657751,70.0,160.08,160.02,0.3994328]
[1730658657752,8.55511301,160.04,160.02,0.3994328]
[1730658658258,8.55511301,160.03,160.02,0.3994328]
[1730658659154,8.55511301,160.04,160.02,0.3994328]
[1730658659566,8.55511301,160.03,160.02,0.3994328]
[1730658660581,6.2484,160.04,160.02,0.3994328]
[1730658660582,14.80351301,160.04,160.02,0.3994328]
[1730658661073,8.55511301,160.07,160.02,8.95454581]
[1730658661274,8.55511301,160.06,160.02,0.3994328]
[1730658661468,8.55511301,160.05,160.02,0.3994328]
[1730658661673,14.80321301,160.05,160.02,0.3994328]
[1730658662054,14.80301301,160.06,160.02,0.3994328]
[1730658662255,8.55511301,160.07,160.02,0.3994328]
[1730658662473,14.80241301,160.07,160.02,6.6484328]
[1730658663275,14.80191301,160.09,160.04,8.55511301]
[1730658663478,1.08176112,160.1,160.05,8.55511301]
[1730658663679,1.08176112,160.1,160.06,8.55511301]
[1730658663863,8.55511301,160.12,160.07,8.55511301]
[1730658664062,8.55511301,160.11,160.05,8.55511301]
[1730658664260,6.2449,160.13,160.04,8.55511301]
[1730658664261,8.55511301,160.1,160.04,8.55511301]
[1730658664567,8.55511301,160.08,160.03,30.42591301]
[1730658664764,8.55511301,160.08,160.03,21.8708]
[1730658665975,8.55511301,160.06,160.02,0.3994328]
[1730658666280,8.55511301,160.03,160.02,0.3994328]
[1730658666664,8.55511301,160.04,160.02,0.3994328]
[1730658667357,8.55511301,160.06,160.02,0.3994328]
[1730658667765,14.80291301,160.06,160.02,0.3994328]
[1730658667962,8.55511301,160.05,160.02,0.3994328]
[1730658670067,14.80291301,160.06,160.02,0.3994328]
[1730658670262,8.55511301,160.07,160.02,0.3994328]
[1730658670476,8.55511301,160.05,160.02,0.3994328]
[1730658672679,8.55511301,160.04,160.02,0.3994328]
[1730658672883,14.80271301,160.06,160.02,0.3994328]
[1730658674261,8.55511301,160.05,160.02,0.3994328]
[1730658674689,8.55511301,160.03,160.02,0.3994328]
[1730658674873,8.55511301,160.04,160.02,0.3994328]
[1730658675486,8.55511301,160.03,160.02,0.3994328]